bitfinex/quotes_SOLUSD_20260213
["timestamp","ask_amount","ask_price","bid_price","bid_amount"]
[1770944463023,40.48,78.203,78.174,12.79197687]
[1770944463024,40.48,78.209,78.181,0.80206527]
[1770944463224,0.7545002,78.219,78.174,44.77191905]
[1770944463225,40.5,78.219,78.191,0.80206527]
[1770944463392,13.53825038,78.225,78.193,0.80206527]
[1770944463719,41.2545002,78.224,78.193,0.80206527]
[1770944464092,0.7545002,78.231,78.201,0.80206527]
[1770944464299,0.7545002,78.219,78.181,0.80206527]
[1770944464593,4.02776426,78.22,78.181,0.80206527]
[1770944464796,40.5,78.219,78.191,0.80206527]
[1770944465005,0.7545002,78.222,78.191,0.80206527]
[1770944465190,0.7545002,78.219,78.178,12.79126262]
[1770944465394,0.7545002,78.209,78.181,0.80206527]
[1770944465594,0.7545002,78.209,78.18,16.81875939]
[1770944465595,12.78418863,78.222,78.191,0.80206527]
[1770944466000,0.7545002,78.221,78.191,0.80206527]
[1770944466404,41.2745002,78.221,78.191,0.80206527]
[1770944467014,41.2745002,78.221,78.193,0.80206527]
[1770944467201,13.53640808,78.236,78.201,0.80206527]
[1770944467401,40.52,78.23,78.201,0.80206527]
[1770944467599,0.7545002,78.229,78.201,0.80206527]
[1770944469114,0.7545002,78.229,78.203,0.80206527]
[1770944471017,0.7545002,78.229,78.204,12.78706971]
[1770944471215,0.7545002,78.229,78.205,0.80206527]
[1770944472196,12.78311013,78.229,78.205,0.80206527]
[1770944472399,0.7545002,78.228,78.205,0.80206527]
[1770944473297,0.7545002,78.226,78.205,0.80206527]
[1770944473618,0.7545002,78.226,78.197,0.80206527]
[1770944474122,0.7545002,78.224,78.197,0.80206527]
[1770944474619,0.7545002,78.22,78.197,0.80206527]
[1770944474817,4.78226446,78.24,78.201,0.80206527]
[1770944475023,0.7545002,78.239,78.201,0.80206527]
[1770944475223,0.7545002,78.239,78.2,4.02776426]
[1770944475224,0.7545002,78.239,78.203,0.80206527]
[1770944475517,40.58,78.24,78.211,0.80206527]
[1770944476413,12.78061942,78.244,78.211,0.80206527]
[1770944476808,12.77971603,78.249,78.213,0.80206527]
[1770944477113,0.7545002,78.248,78.213,0.80206527]
[1770944479324,4.02776426,78.24,78.213,0.80206527]
[1770944479527,0.7545002,78.239,78.213,0.80206527]
[1770944479710,0.7545002,78.239,78.215,0.80206527]
[1770944479906,0.7545002,78.229,78.173,0.80206527]
[1770944480223,0.7545002,78.209,78.173,0.80206527]
[1770944480427,0.7545002,78.199,78.174,0.80206527]
[1770944480611,40.62,78.209,78.161,31.98507743]
[1770944480612,4.02776426,78.19,78.162,0.80206527]
[1770944481623,4.02776426,78.19,78.15,4.02776426]
[1770944481624,4.02776426,78.19,78.166,0.80206527]
[1770944481931,22.8,78.195,78.166,0.80206527]
[1770944482627,4.02776426,78.21,78.171,0.80206527]
[1770944482812,4.78226446,78.21,78.171,0.80206527]
[1770944483012,17.56844096,78.21,78.171,0.80206527]
[1770944483306,4.02776426,78.2,78.171,0.80206527]
[1770944483504,0.7545002,78.199,78.173,0.80206527]
[1770944484332,0.7545002,78.198,78.173,0.80206527]
[1770944486315,4.02776426,78.2,78.175,0.80206527]
[1770944486529,4.02776426,78.21,78.175,0.80206527]
[1770944486824,0.7545002,78.209,78.175,0.80206527]
[1770944487029,0.7545002,78.189,78.166,0.80206527]
[1770944487249,4.02776426,78.2,78.166,0.80206527]
[1770944487438,0.7545002,78.199,78.166,0.80206527]
[1770944487912,0.7545002,78.197,78.167,12.79312241]
[1770944488112,0.7545002,78.189,78.161,0.80206527]
[1770944489519,12.78805084,78.198,78.146,12.79656028]
[1770944489520,0.7545002,78.179,78.146,12.79656028]
[1770944489742,49.37547047,78.198,78.131,0.80206527]
[1770944489743,0.7545002,78.169,78.131,0.80206527]
[1770944490238,0.7545002,78.167,78.132,0.80206527]
[1770944492138,0.7545002,78.167,78.134,0.80389137]
[1770944492735,31.97674807,78.182,78.134,0.80389137]
[1770944492736,8.99687714,78.18,78.134,0.80389137]
[1770944492934,0.74912232,78.179,78.141,0.80389137]
[1770944493631,0.74912232,78.194,78.151,0.78927972]
[1770944493837,0.74912232,78.193,78.161,0.78927972]
[1770944494018,0.74912232,78.189,78.161,0.78927972]
[1770944494214,0.74912232,78.188,78.151,0.78927972]
[1770944495012,0.74912232,78.188,78.15,8.99687714]
[1770944495013,0.74912232,78.236,78.181,0.78927972]
[1770944495214,12.78134945,78.239,78.181,0.78927972]
[1770944495215,0.74912232,78.219,78.181,0.78927972]
[1770944495634,0.74912232,78.209,78.181,0.78927972]
[1770944496135,0.74912232,78.209,78.182,12.79066792]
[1770944496349,0.74912232,78.209,78.183,0.78927972]
[1770944496934,13.53537839,78.209,78.183,0.78927972]
[1770944497243,0.74912232,78.199,78.172,13.58150014]
[1770944497538,0.74912232,78.189,78.158,0.78927972]
[1770944498433,0.74912232,78.189,78.16,0.78927972]
[1770944499118,8.99687714,78.19,78.16,0.78927972]
[1770944499324,9.74599946,78.2,78.161,0.78927972]
[1770944499519,0.74912232,78.199,78.161,0.78927972]
[1770944500126,12.78829692,78.197,78.161,0.78927972]
[1770944500937,12.78829692,78.197,78.163,0.78927972]
[1770944501544,0.74912232,78.196,78.163,0.78927972]
[1770944502424,0.74912232,78.189,78.163,0.78927972]
[1770944502623,8.99687714,78.19,78.165,0.78927972]
[1770944502844,12.78930882,78.191,78.165,0.78927972]
[1770944503931,0.74912232,78.189,78.15,12.79590531]
[1770944504239,9.74599946,78.16,78.121,44.80229387]
[1770944504444,0.74912232,78.159,78.121,44.80229387]
[1770944506031,0.74912232,78.159,78.124,0.78927972]
[1770944508932,0.74912232,78.159,78.126,0.78927972]
[1770944509437,0.74912232,78.159,78.125,12.8]
[1770944509644,0.74912232,78.158,78.125,12.8]
[1770944509840,0.74912232,78.158,78.126,0.78927972]
[1770944510249,0.74912232,78.176,78.131,0.78927972]
[1770944511250,0.74912232,78.174,78.133,0.78927972]
[1770944511852,0.74912232,78.174,78.134,5.36086188]
[1770944512054,51.12276255,78.244,78.161,0.78927972]
[1770944512055,0.74912232,78.197,78.161,0.78927972]
[1770944513630,0.74912232,78.197,78.163,0.78927972]
[1770944515940,0.74912232,78.197,78.165,0.78927972]
[1770944518353,0.74912232,78.197,78.167,0.78927972]
[1770944519252,40.56,78.218,78.166,12.79328608]
[1770944519253,0.74912232,78.209,78.171,0.78927972]
[1770944519445,0.74912232,78.229,78.191,0.78927972]
[1770944520257,4.61729252,78.248,78.192,12.78903212]
[1770944520258,0.74912232,78.227,78.192,12.78903212]
[1770944520441,0.796912,78.219,78.193,0.80823597]
[1770944520841,0.796912,78.229,78.193,0.80823597]
[1770944522243,0.796912,78.229,78.194,44.76046754]
[1770944522559,0.796912,78.229,78.195,0.80823597]
[1770944523341,0.796912,78.249,78.201,0.80823597]
[1770944523760,0.796912,78.249,78.211,0.80823597]
[1770944526354,0.796912,78.249,78.202,55.36]
[1770944526355,0.796912,78.249,78.213,0.80823597]
[1770944528167,0.796912,78.256,78.213,0.80823597]
[1770944528366,0.796912,78.268,78.233,0.80823597]
[1770944528666,0.796912,78.266,78.233,0.80823597]
[1770944532169,0.796912,78.266,78.22,8.99366187]
[1770944532170,0.1,78.27,78.241,0.80823597]
[1770944532357,0.796912,78.269,78.241,0.80823597]
[1770944534374,0.796912,78.269,78.243,0.80823597]
[1770944535049,0.1,78.27,78.243,0.80823597]
[1770944535953,0.1,78.27,78.242,44.73300784]
[1770944535954,0.1,78.28,78.251,0.80823597]
[1770944536159,0.796912,78.295,78.261,0.80823597]
[1770944536368,0.796912,78.295,78.263,0.80823597]
[1770944536669,0.896912,78.29,78.263,0.80823597]
[1770944536972,0.1,78.29,78.263,0.80823597]
[1770944537278,0.1,78.29,78.262,44.72157624]
[1770944537279,0.1,78.3,78.271,0.80823597]
[1770944538267,0.1,78.3,78.272,44.71586263]
[1770944538447,0.1,78.3,78.273,0.80823597]
[1770944538647,0.896912,78.3,78.273,0.80823597]
[1770944539250,0.1,78.3,78.273,0.80823597]
[1770944540065,0.1,78.32,78.281,0.80823597]
[1770944540266,0.1,78.32,78.301,0.80823597]
[1770944540451,0.1,78.32,78.302,12.77106587]
[1770944540771,0.1,78.32,78.297,12.7717331]
[1770944540772,0.896912,78.32,78.297,12.7717331]
[1770944541265,0.896912,78.32,78.29,4.02167703]
[1770944541266,0.796912,78.319,78.289,55.36]
[1770944541470,0.796912,78.309,78.274,0.80823597]
[1770944542160,0.1,78.32,78.273,12.77579752]
[1770944542161,0.796912,78.299,78.273,12.77579752]
[1770944542972,0.796912,78.299,78.273,13.58403349]
[1770944543360,0.796912,78.298,78.273,13.58403349]
[1770944544351,0.796912,78.289,78.264,12.77711393]
[1770944544559,0.796912,78.279,78.251,12.7793894]
[1770944546967,0.796912,78.279,78.244,0.80823597]
[1770944548277,12.77498147,78.278,78.244,0.80823597]
[1770944548572,0.796912,78.259,78.231,12.78265649]
[1770944548952,0.796912,78.259,78.223,44.74370364]
[1770944549865,0.796912,78.259,78.223,45.55193961]
[1770944550173,0.796912,78.259,78.224,0.80823597]
[1770944550969,0.796912,78.259,78.225,13.53069199]
[1770944551375,0.77845678,78.266,78.231,0.74705505]
[1770944553180,0.74648064,78.279,78.241,0.82012751]
[1770944554757,0.74648064,78.279,78.243,0.82012751]
[1770944555771,0.74648064,78.269,78.242,12.78085938]
[1770944555976,0.82039269,78.308,78.242,44.73300784]
[1770944556275,0.82039269,78.289,78.25,8.98151698]
[1770944556575,0.82039269,78.289,78.251,55.52]
[1770944557279,0.82039269,78.289,78.252,44.72729131]
[1770944558270,0.82039269,78.289,78.253,55.54]
[1770944561588,0.82039269,78.279,78.254,12.77889948]
[1770944563470,0.82039269,78.279,78.242,31.95183206]
[1770944563471,0.82039269,78.279,78.244,12.78053269]
[1770944564272,0.82039269,78.279,78.244,44.73186442]
[1770944564475,0.82039269,78.269,78.244,12.78053269]
[1770944564673,0.82039269,78.269,78.243,55.58]
[1770944564879,0.82039269,78.269,78.239,12.78121068]
[1770944565089,0.82039269,78.249,78.228,12.78314669]
[1770944565584,0.82039269,78.249,78.222,31.96011183]
[1770944566590,0.82039269,78.249,78.218,12.78478099]
[1770944567604,0.82039269,78.239,78.217,55.6]
[1770944567806,0.82039269,78.239,78.203,12.78723322]
[1770944567968,0.82039269,78.229,78.203,12.78723322]
[1770944569183,0.82039269,78.259,78.22,8.98416777]
[1770944569381,51.09218453,78.29,78.22,8.98416777]
[1770944569382,0.82039269,78.257,78.22,8.98416777]
[1770944569889,0.82039269,78.257,78.23,8.98416777]
[1770944570091,57.62,78.31,78.221,44.74501731]
[1770944570092,0.82039269,78.269,78.24,8.98416777]
[1770944570280,0.82039269,78.283,78.24,8.98416777]
[1770944570484,0.82039269,78.279,78.24,8.98416777]
[1770944570990,0.82039269,78.287,78.26,4.02081996]
[1770944571195,0.82039269,78.309,78.26,4.02081996]
[1770944571381,0.82039269,78.309,78.26,59.64081996]
[1770944571891,0.82039269,78.317,78.281,12.77449189]
[1770944572480,4.12081996,78.32,78.281,12.77449189]
[1770944572481,0.82039269,78.315,78.281,12.77449189]
[1770944573491,0.82039269,78.315,78.281,44.71072162]
[1770944574389,0.82039269,78.319,78.281,44.71072162]
[1770944574573,0.82039269,78.319,78.29,8.96758305]
[1770944576175,0.82039269,78.319,78.289,44.70615283]
[1770944576370,0.1,78.32,78.301,0.82012751]
[1770944576575,9.06758305,78.34,78.303,0.74017832]
[1770944577390,0.1,78.34,78.303,0.74017832]
[1770944577595,0.1,78.34,78.32,8.96758305]
[1770944577777,0.1,78.34,78.321,0.74175675]
[1770944578175,0.1,78.34,78.323,0.74331495]
[1770944580198,0.84648064,78.36,78.331,0.74638275]
[1770944580396,0.1,78.36,78.34,8.96758305]
[1770944580693,0.1,78.36,78.331,0.74788861]
[1770944581071,0.1,78.37,78.35,8.96758305]
[1770944581280,0.1,78.37,78.349,0.7493858]
[1770944581798,0.1,78.37,78.342,55.66]
[1770944581992,0.1,78.37,78.351,0.65093107]
[1770944582173,0.1,78.37,78.352,12.76291607]
[1770944582372,0.88266018,78.37,78.347,68.42358627]
[1770944582595,0.1,78.37,78.348,12.76356767]
[1770944583278,0.1,78.37,78.35,9.62004002]
[1770944584289,0.1,78.37,78.341,56.2939641]
[1770944584290,0.88266018,78.37,78.341,56.2939641]
[1770944584499,0.78266018,78.369,78.342,12.76454519]
[1770944584695,0.78266018,78.359,78.326,12.76715266]
[1770944585773,0.78266018,78.359,78.33,8.96758305]
[1770944586201,0.78266018,78.359,78.331,12.76633772]
[1770944590282,0.1,78.37,78.309,0.66270958]
[1770944590283,0.78266018,78.349,78.309,0.66270958]
[1770944590482,12.76193879,78.358,78.301,0.79518662]
[1770944590483,0.78266018,78.339,78.301,0.79518662]
[1770944590700,0.78266018,78.339,78.311,0.79518662]
[1770944590893,8.96758305,78.35,78.311,0.79518662]
[1770944590894,0.78266018,78.346,78.311,0.79518662]
[1770944591278,0.78266018,78.346,78.289,5.36086188]
[1770944591279,0.78266018,78.346,78.321,0.79518662]
[1770944591582,4.61729252,78.369,78.331,0.79518662]
[1770944591583,0.78266018,78.355,78.331,0.79518662]
[1770944591781,0.78266018,78.368,78.333,0.79518662]
[1770944592391,0.78266018,78.366,78.333,0.79518662]
[1770944592902,0.78266018,78.359,78.333,0.79518662]
[1770944593903,0.78266018,78.366,78.333,0.79518662]
[1770944594106,0.78266018,78.364,78.334,12.7658488]
[1770944594695,0.78266018,78.364,78.319,55.66]
[1770944594696,0.78266018,78.349,78.321,12.76788072]
[1770944595603,0.78266018,78.349,78.321,13.56306734]
[1770944595802,0.78266018,78.349,78.322,0.79518662]
[1770944596311,0.78266018,78.349,78.323,12.76764168]
[1770944597214,0.78266018,78.349,78.318,12.76845604]
[1770944597799,0.78266018,78.348,78.318,12.76845604]
[1770944597992,0.78266018,78.348,78.318,13.56364266]
[1770944598810,0.78266018,78.348,78.321,0.79518662]
[1770944600212,0.78266018,78.348,78.322,12.7678047]
[1770944601014,0.78266018,78.348,78.323,0.79518662]
[1770944602516,0.78266018,78.348,78.324,12.76747867]
[1770944604626,0.78266018,78.359,78.331,0.79518662]
[1770944605819,0.78266018,78.357,78.331,0.79518662]
[1770944606905,0.78266018,78.355,78.331,13.56143102]
[1770944607420,0.78266018,78.355,78.331,12.7662444]
[1770944608705,0.78266018,78.355,78.327,0.79518662]
[1770944611015,0.78266018,78.355,78.329,0.78927826]
[1770944611616,12.26681655,78.366,78.33,0.78927826]
[1770944612512,12.26681655,78.366,78.332,0.78927826]
[1770944612714,4.11378,78.37,78.332,0.78927826]
[1770944613505,0.8567697,78.368,78.332,0.78927826]
[1770944615006,0.8567697,78.368,78.334,0.83595514]
[1770944615210,0.8567697,78.359,78.324,0.83595514]
[1770944617217,0.8567697,78.358,78.326,0.83595514]
[1770944618028,0.8567697,78.339,78.317,55.72]
[1770944618228,0.8567697,78.339,78.313,0.83595514]
[1770944618436,0.8567697,78.339,78.3,59.75378]
[1770944618437,0.8567697,78.339,78.309,12.76986332]
[1770944618731,4.01378,78.34,78.299,0.83595514]
[1770944618732,0.8567697,78.329,78.299,0.83595514]
[1770944618913,4.61729252,78.34,78.301,0.83595514]
[1770944618914,0.8567697,78.339,78.301,0.83595514]
[1770944619327,0.8567697,78.339,78.28,4.01378]
[1770944619328,0.8567697,78.339,78.311,0.83595514]
[1770944619536,12.7630361,78.352,78.311,0.83595514]
[1770944619834,0.8567697,78.357,78.321,0.83595514]
[1770944621318,0.8567697,78.357,78.315,55.74]
[1770944621319,0.8567697,78.349,78.323,0.83595514]
[1770944621725,0.8567697,78.349,78.322,12.7678047]
[1770944622415,0.8567697,78.339,78.313,12.76916084]
[1770944622616,0.8567697,78.329,78.298,0.83595514]
[1770944623224,0.8567697,78.329,78.29,4.01378]
[1770944623225,0.8567697,78.329,78.3,0.83595514]
[1770944623734,5.47406222,78.348,78.3,0.83595514]
[1770944623943,0.8567697,78.349,78.311,0.83595514]
[1770944624450,52.34275318,78.353,78.311,0.83595514]
[1770944624451,0.8567697,78.339,78.311,0.83595514]
[1770944625018,0.8567697,78.329,78.299,12.77155519]
[1770944625435,0.8567697,78.327,78.299,12.77155519]
[1770944626019,0.8567697,78.327,78.3,0.83595514]
[1770944627223,0.8567697,78.327,78.294,31.93079391]
[1770944627224,0.8567697,78.327,78.302,0.83595514]
[1770944629932,0.8567697,78.319,78.296,0.83595514]
[1770944634240,0.8567697,78.317,78.296,0.83595514]
[1770944634836,4.01605956,78.32,78.296,0.83595514]
[1770944635032,12.76785589,78.322,78.297,0.83595514]
[1770944635232,13.62453099,78.323,78.297,0.83595514]
[1770944635530,0.8567697,78.322,78.297,0.83595514]
[1770944636543,4.87282926,78.32,78.297,0.83595514]
[1770944637042,0.8567697,78.324,78.299,0.83595514]
[1770944639941,0.8567697,78.322,78.299,0.83595514]
[1770944640144,0.8567697,78.319,78.294,12.77224571]
[1770944640336,4.01605956,78.3,78.276,0.85379187]
[1770944640539,0.84710488,78.289,78.262,0.85379187]
[1770944642530,0.84710488,78.269,78.244,0.85379187]
[1770944644529,0.84710488,78.278,78.246,0.85379187]
[1770944644748,0.2832035,78.275,78.24,0.2]
[1770944644948,0.0832035,78.239,78.212,0.85379187]
[1770944645250,4.01605956,78.24,78.19,10.69822163]
[1770944645550,4.01605956,78.25,78.22,1.05379187]
[1770944646446,4.01605956,78.25,78.221,12.78429066]
[1770944646645,4.01605956,78.25,78.222,0.85379187]
[1770944647150,0.0890803,78.297,78.231,0.85379187]
[1770944647329,12.77090277,78.303,78.241,0.85379187]
[1770944647330,4.01605956,78.29,78.241,0.85379187]
[1770944647828,4.01605956,78.31,78.261,0.85379187]
[1770944648443,4.01605956,78.3,78.263,0.85379187]
[1770944648940,8.9718412,78.3,78.263,0.85379187]
[1770944649337,12.77155519,78.299,78.263,0.85379187]
[1770944649649,8.9718412,78.29,78.263,0.85379187]
[1770944651448,12.77318652,78.289,78.263,0.85379187]
[1770944651639,0.09654719,78.288,78.261,12.77762004]
[1770944652941,0.09654719,78.288,78.258,0.85379187]
[1770944653338,48.6318412,78.3,78.258,0.85379187]
[1770944653534,8.9718412,78.29,78.258,0.85379187]
[1770944655059,12.77318652,78.289,78.258,0.85379187]
[1770944656258,12.77318652,78.289,78.26,0.85379187]
[1770944657161,8.9718412,78.29,78.262,0.85379187]
[1770944658660,12.77318652,78.289,78.262,0.85379187]
[1770944659660,0.11054529,78.288,78.254,0.85379187]
[1770944659877,0.11054529,78.279,78.254,0.85379187]
[1770944660368,8.9718412,78.28,78.254,0.85379187]
[1770944661463,8.9718412,78.29,78.256,0.85379187]
[1770944662768,12.77318652,78.289,78.256,0.85379187]
[1770944663366,8.9718412,78.29,78.256,0.85379187]
[1770944663544,21.74501043,78.29,78.257,12.77840959]
[1770944663862,21.74501043,78.29,78.258,0.85379187]
[1770944666562,39.84,78.297,78.26,0.85379187]
[1770944666763,48.8118412,78.3,78.26,0.85379187]
[1770944667542,8.9718412,78.31,78.261,0.85379187]
[1770944667750,52.61000358,78.309,78.261,0.85379187]
[1770944668269,12.76937641,78.313,78.261,0.85379187]
[1770944668471,8.9718412,78.32,78.273,0.85379187]
[1770944668850,4.01723114,78.32,78.273,0.85379187]
[1770944669368,4.01723114,78.32,78.275,0.85379187]
[1770944670272,12.76742038,78.325,78.281,0.85379187]
[1770944670656,4.01723114,78.32,78.283,0.84413896]
[1770944671065,0.13043057,78.319,78.283,0.84413896]
[1770944671654,12.76742038,78.325,78.283,0.84413896]
[1770944671655,0.13043057,78.309,78.283,0.84413896]
[1770944671957,4.01723114,78.3,78.277,13.61926808]
[1770944672557,4.01723114,78.31,78.278,0.84413896]
[1770944674151,12.76992427,78.309,78.28,0.84413896]
[1770944674347,0.13565138,78.308,78.28,0.84413896]
[1770944674966,4.01723114,78.31,78.28,0.84413896]
[1770944676269,4.01723114,78.31,78.282,0.84413896]
[1770944676661,39.86,78.329,78.282,0.84413896]
[1770944677472,4.01723114,78.32,78.282,0.84413896]
[1770944678771,16.78540028,78.32,78.284,0.84413896]
[1770944679963,16.92315065,78.33,78.286,0.84413896]
[1770944680377,16.78374768,78.33,78.286,0.84413896]
[1770944681457,16.92796501,78.33,78.286,0.84413896]
[1770944683375,16.78374768,78.33,78.288,0.84413896]
[1770944683561,4.01723114,78.33,78.288,0.84413896]
[1770944684056,12.91320272,78.329,78.288,0.84413896]
[1770944685175,0.14881008,78.328,78.289,44.70615283]
[1770944685355,0.14881008,78.328,78.29,0.84413896]
[1770944685757,4.01723114,78.33,78.29,0.84413896]
[1770944686154,12.91657973,78.329,78.29,0.84413896]
[1770944686675,12.76666368,78.329,78.29,0.84413896]
[1770944687479,12.76666368,78.329,78.292,0.84413896]
[1770944689088,12.7660467,78.333,78.292,0.84413896]
[1770944690268,12.76503401,78.339,78.294,0.84413896]
[1770944690766,4.01723114,78.34,78.3,4.01723114]
[1770944690966,4.01495738,78.34,78.301,0.84413896]
[1770944691167,12.76432606,78.344,78.301,0.84413896]
[1770944691376,4.01495738,78.35,78.311,0.84413896]
[1770944691564,4.01495738,78.36,78.321,0.84413896]
[1770944692259,31.89887889,78.373,78.312,55.28]
[1770944692260,0.15630711,78.379,78.331,0.84413896]
[1770944692777,4.11495738,78.38,78.322,44.68731645]
[1770944692778,0.15630711,78.359,78.324,0.84413896]
[1770944692974,4.84927232,78.34,78.29,4.01495738]
[1770944693282,0.83431494,78.339,78.29,4.01495738]
[1770944693481,0.83431494,78.329,78.291,55.26]
[1770944693666,0.83431494,78.339,78.291,55.26]
[1770944694691,12.76421273,78.345,78.3,4.01495738]
[1770944694865,12.76421273,78.345,78.301,0.84205641]
[1770944695067,12.76421273,78.345,78.302,0.84205641]
[1770944695980,0.83431494,78.346,78.304,0.84205641]
[1770944696289,4.01495738,78.35,78.311,0.84205641]
[1770944696482,0.83431494,78.348,78.311,0.84205641]
[1770944699889,0.83431494,78.348,78.287,5.36086188]
[1770944699890,0.83431494,78.339,78.307,12.77017397]
[1770944700094,0.83431494,78.339,78.308,0.84205641]
[1770944700793,0.89245375,78.356,78.311,0.87754886]
[1770944701178,0.89245375,78.349,78.311,0.87754886]
[1770944701374,0.89245375,78.349,78.31,4.01495738]
[1770944701375,4.01495738,78.35,78.313,0.87754886]
[1770944701579,4.61729252,78.36,78.321,0.87754886]
[1770944701993,0.89245375,78.349,78.315,0.87754886]
[1770944702196,0.89245375,78.339,78.308,0.87754886]
[1770944702586,4.01495738,78.33,78.308,0.87754886]
[1770944702893,0.89245375,78.332,78.309,12.76992427]
[1770944703892,0.89245375,78.332,78.31,0.87754886]
[1770944704791,36.52520787,78.351,78.299,31.9287327]
[1770944704792,0.89245375,78.319,78.299,12.771535]
[1770944705196,0.89245375,78.33,78.3,0.87754886]
[1770944705381,51.02471506,78.394,78.311,0.87754886]
[1770944705382,0.89245375,78.349,78.311,0.87754886]
[1770944706479,0.89245375,78.349,78.287,5.36086188]
[1770944706480,4.11495738,78.37,78.331,0.87754886]
[1770944706679,12.7601475,78.369,78.331,0.87754886]
[1770944708180,0.1,78.37,78.331,0.87754886]
[1770944708380,0.1,78.37,78.33,4.01495738]
[1770944708381,4.11495738,78.37,78.333,0.87754886]
[1770944708699,0.89245375,78.369,78.333,0.87754886]
[1770944709209,0.89245375,78.369,78.326,55.3]
[1770944709210,4.01495738,78.35,78.326,55.3]
[1770944709383,0.89245375,78.349,78.326,55.3]
[1770944709695,0.1,78.37,78.328,0.87754886]
[1770944709696,4.01495738,78.36,78.328,0.87754886]
[1770944710285,0.89245375,78.363,78.33,0.87754886]
[1770944710483,17.76743408,78.37,78.33,0.87754886]
[1770944710686,0.89245375,78.369,78.33,0.87754886]
[1770944711901,4.01495738,78.36,78.33,0.87754886]
[1770944712086,0.89245375,78.369,78.33,0.87754886]
[1770944712282,0.89245375,78.369,78.331,12.76633772]
[1770944712487,0.89245375,78.369,78.332,0.87754886]
[1770944713587,0.89245375,78.369,78.334,0.87754886]
[1770944713994,0.89245375,78.367,78.334,0.87754886]
[1770944715302,4.11495738,78.37,78.326,55.3]
[1770944715303,0.1,78.37,78.336,0.87754886]
[1770944715608,0.89245375,78.368,78.336,0.87754886]
[1770944717415,0.89245375,78.366,78.336,0.87754886]
[1770944717583,0.89245375,78.366,78.338,0.87754886]
[1770944718708,0.1,78.37,78.338,0.87754886]
[1770944718902,12.7601475,78.369,78.338,0.87754886]
[1770944719203,13.65260125,78.369,78.338,0.87754886]
[1770944719922,4.11495738,78.37,78.34,0.87754886]
[1770944720200,0.1,78.37,78.342,0.87754886]
[1770944720384,0.1,78.37,78.344,0.87754886]
[1770944720590,0.1,78.37,78.346,0.87754886]
[1770944720796,0.1,78.38,78.345,55.3]
[1770944720797,0.1,78.38,78.351,0.87754886]
[1770944720985,0.1,78.38,78.339,44.67761905]
[1770944720986,0.1,78.38,78.361,0.87754886]
[1770944721184,0.1,78.38,78.363,0.87754886]
[1770944721384,0.1,78.38,78.365,0.87754886]
[1770944722109,0.1,78.38,78.367,0.87754886]
[1770944723493,5.00741113,78.4,78.366,12.76063599]
[1770944723499,0.1,78.4,78.371,0.87754886]
[1770944723815,0.1,78.4,78.373,0.87754886]
[1770944724189,0.1,78.4,78.366,44.66222596]
[1770944724190,0.1,78.4,78.383,0.87754886]
[1770944724395,0.1,78.4,78.385,0.87754886]
[1770944725394,0.1,78.4,78.387,0.87754886]
[1770944725594,0.1,78.4,78.388,12.75705465]
[1770944725907,0.1,78.4,78.389,0.87754886]
[1770944729412,0.1,78.4,78.391,0.87754886]
[1770944730506,0.1,78.4,78.392,12.75640371]
[1770944730706,0.1,78.4,78.391,0.87754886]
[1770944730913,0.1,78.4,78.387,0.9397079]
[1770944731116,0.1,78.4,78.388,0.9397079]
[1770944733206,13.03584228,78.51,78.386,55.36]
[1770944733207,0.90251701,78.43,78.391,0.87805024]
[1770944733398,0.90251701,78.429,78.393,0.87805024]
[1770944733901,0.90251701,78.419,78.393,0.87805024]
[1770944734525,0.90251701,78.429,78.395,0.87805024]
[1770944735205,0.90251701,78.429,78.396,12.75575284]
[1770944735405,0.90251701,78.429,78.397,0.87805024]
[1770944736522,0.90251701,78.442,78.398,0.87805024]
[1770944736714,4.01495738,78.46,78.411,0.87805024]
[1770944736907,4.01495738,78.44,78.409,24.83111991]
[1770944737416,4.01495738,78.44,78.397,0.87805024]
[1770944737417,4.01495738,78.44,78.4,0.87805024]
[1770944737804,4.01495738,78.43,78.398,12.75542743]
[1770944738007,12.74876018,78.439,78.386,31.89341959]
[1770944738008,4.01495738,78.42,78.388,0.87805024]
[1770944738710,0.62056257,78.419,78.388,0.87805024]
[1770944739214,0.62056257,78.419,78.39,12.75664793]
[1770944740128,0.62368055,78.417,78.39,12.75664793]
[1770944741423,0.62368055,78.417,78.384,0.87805024]
[1770944742413,0.62672681,78.415,78.384,0.87805024]
[1770944742614,12.75249948,78.416,78.384,0.87805024]
[1770944742615,0.62672681,78.409,78.384,0.87805024]
[1770944743126,0.62823375,78.419,78.384,0.87805024]
[1770944743818,0.62823375,78.419,78.386,0.87805024]
[1770944744215,0.62970904,78.409,78.382,55.5]
[1770944744432,0.62970904,78.409,78.381,12.75811204]
[1770944745438,0.62970904,78.409,78.347,5.36086188]
[1770944745439,0.63116938,78.389,78.362,0.87805024]
[1770944745616,0.63116938,78.389,78.361,12.76145021]
[1770944745811,0.63116938,78.387,78.357,0.87805024]